bitfinex/quotes_BTCUSD_20240729
["timestamp","ask_amount","ask_price","bid_price","bid_amount"]
[1722278358056,0.00945729,67475.0,67468.0,0.148218]
[1722278358300,0.00945729,67475.0,67471.0,0.148211]
[1722278358561,0.001,67476.0,67471.0,0.148211]
[1722278358735,0.001,67476.0,67475.0,0.148203]
[1722278358992,0.001,67476.0,67475.0,0.94681439]
[1722278359233,0.001,67476.0,67475.0,1.26622039]
[1722278359584,0.001,67476.0,67475.0,1.3783813]
[1722278360399,0.00836,67487.0,67486.0,1.029592]
[1722278360603,0.00836,67487.0,67486.0,1.44131139]
[1722278360781,0.00836,67487.0,67486.0,2.11686566]
[1722278361159,0.03160394,67487.0,67486.0,2.14658566]
[1722278361642,0.00836,67487.0,67486.0,1.85022866]
[1722278361865,0.00836,67487.0,67486.0,1.75066551]
[1722278362038,0.00836,67487.0,67486.0,1.76466551]
[1722278362445,0.00836,67487.0,67486.0,1.65166839]
[1722278363369,0.00836,67487.0,67486.0,1.63766839]
[1722278363829,0.00836,67487.0,67486.0,1.65166839]
[1722278364337,0.00836,67487.0,67486.0,1.63766839]
[1722278364509,0.03160162,67487.0,67486.0,1.63766839]
[1722278364705,0.03160162,67487.0,67486.0,1.65166839]
[1722278364916,0.03160162,67487.0,67486.0,1.80329036]
[1722278365117,0.03160162,67487.0,67486.0,1.75166839]
[1722278365278,0.03160162,67487.0,67486.0,1.76566839]
[1722278365475,0.03160162,67487.0,67486.0,1.86474844]
[1722278365822,0.03160162,67487.0,67486.0,1.76566839]
[1722278366227,0.03160162,67487.0,67486.0,1.77397938]
[1722278366521,0.03160162,67487.0,67486.0,1.87397938]
[1722278366720,0.03160162,67487.0,67486.0,1.98702927]
[1722278366952,0.03160162,67487.0,67486.0,1.98704183]
[1722278367379,0.03160162,67487.0,67486.0,1.87397938]
[1722278369002,0.03160162,67487.0,67486.0,1.77397938]
[1722278369388,0.00836,67487.0,67486.0,1.77397938]
[1722278371273,0.00836,67487.0,67486.0,1.87397938]
[1722278371579,0.00836,67487.0,67486.0,1.26592238]
[1722278371723,0.00836,67487.0,67486.0,1.53255938]
[1722278372492,0.03160118,67487.0,67486.0,1.71227938]
[1722278372633,0.03160118,67487.0,67486.0,1.61227938]
[1722278372830,0.03160118,67487.0,67486.0,1.63527938]
[1722278373884,0.03160118,67487.0,67486.0,1.58527938]
[1722278374204,0.03160118,67487.0,67486.0,1.25920238]
[1722278374584,0.03315538,67487.0,67486.0,1.25920238]
[1722278374914,0.03315538,67487.0,67486.0,0.95453439]
[1722278375116,0.0099142,67487.0,67486.0,0.028]
[1722278375318,0.02039808,67487.0,67486.0,0.028]
[1722278375676,0.02139808,67487.0,67486.0,0.028]
[1722278375917,0.02039808,67487.0,67486.0,0.028]
[1722278376120,0.02039808,67487.0,67486.0,0.162178]
[1722278376319,0.0099142,67487.0,67486.0,0.162178]
[1722278376962,0.0099142,67487.0,67486.0,0.148178]
[1722278377158,0.0099142,67487.0,67486.0,0.013]
[1722278377464,0.02038858,67487.0,67486.0,0.457535]
[1722278377891,0.02038858,67487.0,67486.0,0.161178]
[1722278378088,0.02038858,67487.0,67486.0,0.42869997]
[1722278378223,0.04363117,67487.0,67486.0,0.673435]
[1722278378422,0.04207697,67487.0,67486.0,0.673435]
[1722278378623,0.04363117,67487.0,67486.0,0.673435]
[1722278378861,0.04363117,67487.0,67486.0,0.687435]
[1722278379063,0.04363117,67487.0,67486.0,0.391078]
[1722278379326,0.02038858,67487.0,67486.0,0.2429]
[1722278379776,0.02138858,67487.0,67486.0,0.027]
[1722278379956,0.02138858,67487.0,67486.0,0.013]
[1722278380124,0.02038858,67487.0,67486.0,0.013]
[1722278380319,0.0099142,67487.0,67486.0,0.013]
[1722278380758,0.0099142,67487.0,67486.0,0.027]
[1722278381541,0.0099142,67487.0,67486.0,0.175178]
[1722278382348,0.0099142,67487.0,67486.0,0.161178]
[1722278382618,0.03315658,67487.0,67486.0,0.161178]
[1722278382797,0.03315658,67487.0,67486.0,0.175178]
[1722278383373,0.03315658,67487.0,67486.0,0.027]
[1722278383696,0.03315658,67487.0,67486.0,0.471535]
[1722278383897,0.00836,67487.0,67486.0,1.12689139]
[1722278384074,0.00836,67487.0,67486.0,1.50624839]
[1722278384637,0.00836,67487.0,67486.0,1.55624839]
[1722278384841,0.00836,67487.0,67486.0,1.76880438]
[1722278385051,0.00836,67487.0,67486.0,1.66880438]
[1722278385890,0.00836,67487.0,67486.0,1.61880438]
[1722278386093,0.00836,67487.0,67486.0,1.66880438]
[1722278387308,0.03160154,67487.0,67486.0,1.65580438]
[1722278387521,0.00836,67487.0,67486.0,1.64324839]
[1722278387696,0.00836,67487.0,67486.0,1.66908146]
[1722278387896,0.00836,67487.0,67486.0,1.65608146]
[1722278388338,0.00836,67487.0,67486.0,1.75608146]
[1722278388511,0.00836,67487.0,67486.0,1.67008146]
[1722278388712,0.00836,67487.0,67486.0,1.65608146]
[1722278388929,0.00836,67487.0,67486.0,1.75608146]
[1722278389131,0.00084,67496.0,67495.0,1.103013]
[1722278389291,0.00084,67496.0,67495.0,1.61982446]
[1722278389800,0.00084,67496.0,67495.0,0.47689207]
[1722278389801,0.07904,67496.0,67495.0,0.47689207]
[1722278389940,0.07904,67496.0,67495.0,0.364059]
[1722278390156,0.10920125,67496.0,67495.0,0.2159]
[1722278390361,0.15920125,67496.0,67495.0,0.364059]
[1722278390561,0.05,67494.0,67493.0,0.148162]
[1722278390812,0.05,67493.0,67491.0,0.148166]
[1722278391018,0.05,67493.0,67492.0,0.148165]
[1722278391370,0.05,67493.0,67492.0,0.444496]
[1722278391774,0.15,67494.0,67493.0,0.148163]
[1722278392405,0.05,67494.0,67493.0,0.44449]
[1722278394647,0.15,67494.0,67493.0,0.148163]
[1722278394837,0.151,67494.0,67493.0,0.148163]
[1722278395037,0.151,67494.0,67493.0,0.44449]
[1722278395239,0.15,67494.0,67493.0,0.148163]
[1722278396519,0.15,67491.0,67490.0,0.14817]
[1722278396760,0.16817959,67496.0,67483.0,0.444552]
[1722278396761,0.05,67484.0,67483.0,0.444552]
[1722278396964,0.1108,67484.0,67483.0,0.6996324]
[1722278397171,0.0608,67484.0,67483.0,0.71065139]
[1722278397347,0.1108,67484.0,67483.0,0.71065139]
[1722278397562,0.0608,67484.0,67483.0,0.71065139]
[1722278397739,0.1108,67484.0,67483.0,0.71065139]
[1722278398099,0.05,67478.0,67477.0,0.660495]
[1722278398264,0.23822207,67484.0,67477.0,0.57079291]
[1722278398467,0.08822207,67484.0,67483.0,0.956825]
[1722278398676,0.13822207,67484.0,67483.0,0.956825]
[1722278398886,0.08822207,67484.0,67483.0,0.956825]
[1722278399266,0.13822207,67484.0,67483.0,0.660455]
[1722278399472,0.13822207,67484.0,67483.0,1.09992439]
[1722278399689,0.13822207,67484.0,67483.0,0.80355439]
[1722278400073,0.13922207,67484.0,67483.0,0.50718439]
[1722278400284,0.13822207,67484.0,67483.0,0.80355439]
[1722278400454,0.13822207,67484.0,67483.0,0.81755439]
[1722278400455,0.16146549,67484.0,67483.0,0.81755439]
[1722278400608,0.16146549,67484.0,67483.0,0.52118439]
[1722278400813,0.13822207,67484.0,67483.0,0.81755439]
[1722278401010,0.13822207,67484.0,67483.0,0.80355439]
[1722278402283,0.0813,67484.0,67483.0,1.09992439]
[1722278402558,0.05,67487.0,67486.0,0.444534]
[1722278402709,0.15,67487.0,67486.0,0.148178]
[1722278402912,0.15773199,67487.0,67486.0,0.148178]
[1722278403114,0.05,67485.0,67484.0,0.444548]
[1722278403404,0.05,67485.0,67484.0,0.14309939]
[1722278403510,0.00084,67487.0,67486.0,0.444535]
[1722278403709,0.00084,67487.0,67486.0,1.20334839]
[1722278403968,0.00084,67487.0,67486.0,1.31566706]
[1722278405971,0.00084,67487.0,67486.0,1.20334839]
[1722278406609,0.05084,67487.0,67486.0,0.14309939]
[1722278406852,0.05,67484.0,67483.0,0.014]
[1722278407014,0.05,67485.0,67484.0,0.148183]
[1722278407270,0.15,67485.0,67484.0,0.148183]
[1722278407449,0.05,67484.0,67483.0,0.014]
[1722278407659,0.2312,67484.0,67483.0,0.014]
[1722278407857,0.2312,67484.0,67483.0,0.162185]
[1722278408104,0.0812,67484.0,67483.0,0.162185]
[1722278408304,0.2312,67484.0,67483.0,0.458555]
[1722278408475,0.1312,67484.0,67483.0,0.458555]
[1722278409005,0.1312,67484.0,67483.0,0.674455]
[1722278409326,0.0812,67484.0,67483.0,0.674455]
[1722278409929,0.0812,67484.0,67483.0,0.81755439]
[1722278410193,0.05,67486.0,67485.0,0.444543]
[1722278410542,0.15,67486.0,67485.0,0.444543]
[1722278410731,0.00084,67487.0,67486.0,0.444535]
[1722278410935,0.00084,67487.0,67486.0,0.88399139]
[1722278411187,0.00084,67487.0,67486.0,1.20334839]
[1722278411893,0.00084,67487.0,67486.0,1.31700608]
[1722278412095,0.00084,67487.0,67486.0,1.33100609]
[1722278412314,0.00084,67487.0,67486.0,1.34500609]
[1722278412713,0.00084,67487.0,67486.0,1.23134839]
[1722278414605,0.00084,67487.0,67486.0,0.93499139]
[1722278414765,0.05084,67487.0,67486.0,0.93499139]
[1722278414961,0.05084,67487.0,67486.0,0.61563439]
[1722278415493,0.00084,67487.0,67486.0,0.61563439]
[1722278416031,0.00084,67487.0,67486.0,0.91199139]
[1722278416673,0.00084,67487.0,67486.0,1.36929194]
[1722278416784,0.00084,67487.0,67486.0,1.55919969]
[1722278417458,0.02408123,67487.0,67486.0,1.58891969]
[1722278417657,0.02408123,67487.0,67486.0,1.68891969]
[1722278417800,0.00084,67487.0,67486.0,1.98527669]
[1722278419004,0.00084,67487.0,67486.0,1.87196894]
[1722278419229,0.00084,67487.0,67486.0,1.98518342]
[1722278419920,0.00084,67487.0,67486.0,1.68882642]
[1722278420290,0.00084,67487.0,67486.0,1.67482642]
[1722278420606,0.02408003,67487.0,67486.0,1.66082642]
[1722278420865,0.02408003,67487.0,67486.0,1.46028287]
[1722278421076,0.02408003,67487.0,67486.0,1.12520587]
[1722278421509,0.02408003,67487.0,67486.0,1.42156287]
[1722278422096,0.02408003,67487.0,67486.0,1.59498287]
[1722278422305,0.02408003,67487.0,67486.0,1.61807815]
[1722278422306,0.00084,67487.0,67486.0,1.61807815]
[1722278422511,0.00084,67487.0,67486.0,1.54037815]
[1722278422697,0.00084,67487.0,67486.0,1.54060047]
[1722278422913,0.00084,67487.0,67486.0,1.54059967]
[1722278424331,0.00084,67487.0,67486.0,1.17824267]
[1722278425556,0.02408054,67487.0,67486.0,1.06471139]
[1722278425706,0.00084,67487.0,67486.0,1.1785361]
[1722278426692,0.00084,67487.0,67486.0,1.4748931]
[1722278427280,0.00084,67487.0,67486.0,1.6157931]
[1722278427661,0.00084,67487.0,67486.0,1.9121501]
[1722278428487,0.00084,67496.0,67495.0,1.037113]
[1722278428716,0.00084,67496.0,67495.0,1.51203239]
[1722278428912,0.00084,67496.0,67495.0,1.62574445]
[1722278429191,0.00084,67496.0,67495.0,1.92206245]
[1722278429439,0.00084,67496.0,67495.0,2.10266245]
[1722278429649,0.00084,67496.0,67495.0,2.11666245]
[1722278430261,0.00084,67496.0,67495.0,2.10266245]
[1722278430841,0.00084,67496.0,67495.0,2.10288223]
[1722278431868,0.00836,67497.0,67495.0,1.36208723]
[1722278432071,0.00836,67501.0,67500.0,0.177868]
[1722278432295,0.00836,67501.0,67500.0,0.62365708]
[1722278432487,0.00836,67501.0,67500.0,1.90884108]
[1722278432692,0.00836,67501.0,67500.0,1.99164108]
[1722278433091,0.00836,67501.0,67500.0,1.90587871]
[1722278433331,0.00836,67501.0,67500.0,1.80587871]
[1722278433736,0.0315954,67501.0,67500.0,1.80587871]
[1722278434190,0.0315954,67501.0,67500.0,1.81987871]
[1722278434585,0.0315954,67501.0,67500.0,1.90267871]
[1722278435183,0.0315954,67501.0,67500.0,1.78875139]
[1722278435380,0.00836,67503.0,67500.0,1.86794156]
[1722278435637,0.00836,67506.0,67505.0,0.30772]
[1722278435779,0.00836,67506.0,67505.0,1.42784256]
[1722278435980,0.00835,67520.0,67508.0,0.614711]
[1722278436286,0.00835,67520.0,67508.0,1.58667056]
[1722278436657,0.00835,67520.0,67508.0,1.88293156]
[1722278437613,0.00835,67520.0,67508.0,1.80443156]
[1722278437815,0.00835,67520.0,67508.0,1.81843156]
[1722278438059,0.00835,67520.0,67508.0,1.70509339]
[1722278438442,0.03159338,67509.0,67508.0,1.70509339]
[1722278439334,0.03159338,67509.0,67508.0,1.34673239]
[1722278439565,0.03159338,67509.0,67508.0,1.33273239]
[1722278439972,0.00836,67509.0,67508.0,1.33273239]
[1722278440368,0.00836,67509.0,67508.0,1.34673239]
[1722278440789,0.00836,67509.0,67508.0,1.33273239]
[1722278440993,0.00836,67509.0,67508.0,1.34673239]
[1722278441214,0.00836,67509.0,67508.0,1.36073239]
[1722278441698,0.00836,67509.0,67508.0,1.41243239]
[1722278441835,0.00836,67509.0,67508.0,1.42643239]
[1722278442218,0.00836,67509.0,67508.0,1.4350347]
[1722278442633,0.00836,67509.0,67508.0,1.3553347]
[1722278443097,0.00836,67509.0,67508.0,1.3413347]
[1722278443297,0.03159318,67509.0,67508.0,1.3413347]
[1722278443583,0.00835,67520.0,67519.0,0.148106]
[1722278443792,0.01754102,67520.0,67519.0,0.64013739]
[1722278443957,0.01754102,67520.0,67519.0,0.93634939]
[1722278444161,0.00835,67520.0,67519.0,1.23256139]
[1722278444566,0.05835,67520.0,67519.0,1.23256139]
[1722278444771,0.00835,67520.0,67519.0,0.93634939]
[1722278445695,0.00835,67520.0,67519.0,0.95034939]
[1722278446063,0.05835,67520.0,67519.0,0.95034939]
[1722278446268,0.00835,67520.0,67519.0,0.95034939]
[1722278446775,0.00835,67520.0,67519.0,0.93462939]
[1722278447178,0.01754551,67520.0,67519.0,0.93462939]
[1722278447417,0.06754551,67520.0,67519.0,0.93462939]
[1722278447618,0.06754551,67520.0,67519.0,0.66813739]
[1722278447819,0.31424551,67520.0,67519.0,0.028]
[1722278448055,0.26424551,67520.0,67519.0,0.028]
[1722278448229,0.31424551,67520.0,67519.0,0.028]
[1722278448442,0.31524551,67520.0,67519.0,0.028]
[1722278448727,0.31524551,67520.0,67519.0,0.014]
[1722278448967,0.31524551,67520.0,67519.0,0.028]
[1722278449177,0.49502948,67520.0,67519.0,0.028]
[1722278449504,0.34847968,67520.0,67519.0,0.028]
[1722278449700,1.05576551,67520.0,67519.0,0.028]
[1722278449929,0.75955751,67520.0,67519.0,0.028]
[1722278450122,1.05576551,67520.0,67519.0,0.014]
[1722278450387,1.05576551,67520.0,67519.0,0.028]
[1722278450714,1.05576551,67520.0,67519.0,0.014]
[1722278451165,0.75955751,67520.0,67519.0,0.027]
[1722278451404,1.05576551,67520.0,67519.0,0.027]
[1722278451582,1.05576551,67520.0,67519.0,0.014]
[1722278451790,0.2958,67504.0,67503.0,0.1]
[1722278452024,0.30496366,67504.0,67503.0,0.248141]
[1722278452226,0.09216366,67504.0,67503.0,0.544424]
[1722278452522,0.09216366,67504.0,67503.0,1.30308939]
[1722278452861,0.0015542,67509.0,67508.0,0.740652]
[1722278453079,0.0515542,67509.0,67508.0,0.90675139]
[1722278453450,0.0015542,67509.0,67508.0,0.90675139]
[1722278454323,0.07478921,67509.0,67508.0,0.90675139]
[1722278454524,0.02478921,67509.0,67508.0,0.90675139]
[1722278454766,0.0015542,67509.0,67508.0,0.90675139]
[1722278455146,0.0515542,67509.0,67508.0,0.90675139]
[1722278455506,0.0515542,67509.0,67503.0,0.1]
[1722278455507,0.15,67504.0,67503.0,0.1]
[1722278455709,0.1254,67504.0,67503.0,0.29124039]
[1722278455860,0.1254,67504.0,67501.0,0.296289]
[1722278455861,0.15,67503.0,67502.0,0.44443]
[1722278456260,0.15917168,67503.0,67502.0,0.44443]
[1722278457205,0.15917168,67503.0,67501.0,0.1]
[1722278457420,0.1515542,67502.0,67501.0,0.148145]
[1722278457643,0.0754,67492.0,67488.0,0.2159]
[1722278457857,0.15,67490.0,67489.0,0.14309939]
[1722278458012,0.2121,67490.0,67489.0,0.29127139]
[1722278458220,0.22125487,67490.0,67489.0,0.29127139]
[1722278458436,0.24449593,67490.0,67489.0,0.58761539]
[1722278458608,0.24449593,67490.0,67489.0,0.29127139]
[1722278458866,0.24449593,67490.0,67489.0,0.14309939]
[1722278459294,0.24449593,67490.0,67489.0,0.29127139]
[1722278459452,0.24449593,67490.0,67489.0,0.58761539]
[1722278460422,0.24449593,67490.0,67489.0,0.29127139]
[1722278460648,0.24449593,67490.0,67489.0,0.58761539]
[1722278460973,0.08239593,67490.0,67489.0,0.88395939]
[1722278461179,0.05,67487.0,67486.0,0.000913]
[1722278461382,0.06070538,67487.0,67486.0,0.16701239]
[1722278461617,0.06070538,67487.0,67486.0,0.31519039]
[1722278461618,0.01070538,67487.0,67486.0,0.31519039]
[1722278461825,0.0515542,67487.0,67486.0,0.31519039]
[1722278462044,0.0015542,67487.0,67486.0,0.31519039]
[1722278462441,0.1515542,67487.0,67486.0,0.149091]
[1722278462595,0.15,67487.0,67486.0,0.000913]
[1722278462798,0.15915568,67487.0,67486.0,0.000913]
[1722278463191,0.10915568,67487.0,67486.0,0.000913]
[1722278463390,0.29,67487.0,67486.0,0.000913]
[1722278463609,0.77507737,67487.0,67486.0,0.000913]
[1722278463805,1.37073692,67487.0,67486.0,0.000913]
[1722278464033,1.37073692,67487.0,67486.0,0.014913]
[1722278464034,1.07438392,67487.0,67486.0,0.014913]
[1722278464229,1.07438392,67487.0,67486.0,0.000913]
[1722278464443,1.07438392,67487.0,67486.0,0.012913]
[1722278464645,1.25428638,67487.0,67486.0,0.012913]
[1722278464844,1.59493731,67487.0,67486.0,0.012913]
[1722278465067,1.64032465,67487.0,67486.0,0.012913]
[1722278465509,1.59491023,67487.0,67486.0,0.000913]
[1722278465654,1.55063938,67487.0,67486.0,0.000913]
[1722278465852,1.25428638,67487.0,67486.0,0.000913]
[1722278466052,1.22280685,67487.0,67486.0,0.000913]
[1722278466248,1.51915985,67487.0,67486.0,0.014913]
[1722278466482,1.18600378,67487.0,67486.0,0.014913]
[1722278466684,1.48235678,67487.0,67486.0,0.014913]
[1722278466907,1.18600378,67487.0,67486.0,0.014913]
[1722278467113,1.30567673,67487.0,67486.0,0.014913]
[1722278467313,1.18755798,67487.0,67486.0,0.014913]
[1722278467768,0.74810559,67487.0,67486.0,0.014913]
[1722278467966,0.23902239,67487.0,67486.0,0.459448]
[1722278468192,0.18902239,67487.0,67486.0,0.459448]
[1722278468390,0.01202239,67487.0,67486.0,0.89890439]
[1722278468522,0.06402239,67487.0,67486.0,0.89890439]
[1722278468727,0.15,67487.0,67486.0,0.89890439]
[1722278468926,0.152,67487.0,67486.0,0.30619039]
[1722278469124,0.152,67487.0,67486.0,0.15801239]
[1722278469328,0.15781938,67487.0,67486.0,0.014913]
[1722278469547,0.15781938,67487.0,67486.0,0.000913]
[1722278469548,0.15881938,67487.0,67486.0,0.000913]
[1722278469842,0.15881938,67487.0,67486.0,0.014913]
[1722278470495,0.15881938,67487.0,67486.0,0.000913]
[1722278470859,0.15881938,67487.0,67486.0,0.014913]
[1722278471088,0.18487084,67487.0,67486.0,0.014913]
[1722278471288,0.32197084,67487.0,67486.0,0.028913]
[1722278471526,0.00781938,67487.0,67486.0,0.53346939]
[1722278471647,0.00781938,67487.0,67486.0,0.028913]
[1722278471648,0.05781938,67487.0,67486.0,0.028913]
[1722278471847,0.05,67487.0,67486.0,0.473448]
[1722278472050,0.0015542,67489.0,67488.0,0.148174]
[1722278472386,0.00937957,67489.0,67488.0,0.74087]
[1722278472589,0.00782537,67489.0,67488.0,1.04996939]
[1722278472746,0.02324106,67490.0,67489.0,0.148172]
[1722278472947,0.02324106,67490.0,67489.0,1.33402339]
[1722278473152,0.1,67507.0,67501.0,0.444436]
[1722278473153,0.05,67505.0,67501.0,0.444436]
[1722278473361,0.48314572,67502.0,67501.0,0.740727]
[1722278473559,0.48314572,67502.0,67501.0,1.33606094]
[1722278473768,0.48314572,67502.0,67501.0,1.46578094]
[1722278473769,0.4753,67502.0,67501.0,1.46578094]
[1722278474033,0.4753,67502.0,67501.0,1.43606094]
[1722278474259,0.48314632,67502.0,67501.0,1.43606094]
[1722278474662,0.48314632,67502.0,67501.0,1.73235194]
[1722278474860,0.48314632,67502.0,67501.0,1.84237194]
[1722278475649,0.48314632,67502.0,67501.0,1.54608094]
[1722278475839,0.48314632,67502.0,67501.0,1.43606094]
[1722278476043,0.48314632,67502.0,67501.0,1.30311739]
[1722278476246,0.00784632,67502.0,67501.0,1.30311739]
[1722278476466,0.05,67505.0,67504.0,0.740695]
[1722278476671,0.05,67509.0,67508.0,0.296261]
[1722278476922,0.05,67509.0,67508.0,0.43936039]
[1722278477073,0.08109138,67509.0,67508.0,0.88375139]
[1722278477288,0.07323549,67509.0,67508.0,0.740652]
[1722278478691,0.08109018,67509.0,67508.0,0.740652]
[1722278478845,0.08109018,67509.0,67508.0,0.770372]
[1722278479070,0.07323549,67509.0,67508.0,0.770372]
[1722278479350,0.02323549,67509.0,67508.0,0.94945139]
[1722278479473,0.02323549,67509.0,67508.0,0.96345139]
[1722278479681,0.02323549,67509.0,67508.0,0.94945139]
[1722278480007,0.03108839,67509.0,67508.0,1.27543239]
[1722278480171,0.03108839,67509.0,67508.0,1.29843239]
[1722278480379,0.08108839,67509.0,67508.0,1.01617139]
[1722278480580,0.08108839,67509.0,67508.0,1.00217139]
[1722278480888,0.03108839,67509.0,67508.0,1.01617139]
[1722278481431,0.02323549,67509.0,67508.0,1.01617139]
[1722278482231,0.03126174,67509.0,67508.0,1.01617139]
[1722278482429,0.02323549,67509.0,67508.0,1.03017139]
[1722278483237,0.07323549,67509.0,67508.0,1.03017139]
[1722278483799,0.02323549,67509.0,67508.0,1.03017139]
[1722278483998,0.07323549,67509.0,67508.0,1.03017139]
[1722278484284,0.02323549,67509.0,67508.0,1.03017139]
[1722278484762,0.02323549,67510.0,67509.0,0.77036]
[1722278485106,0.02323549,67510.0,67509.0,0.93645939]
[1722278485254,0.12323549,67511.0,67510.0,0.74063]
[1722278485416,0.12323549,67511.0,67510.0,0.88372939]
[1722278485874,0.05,67511.0,67510.0,0.88372939]
[1722278486278,0.1,67511.0,67510.0,0.88372939]
[1722278486479,0.12323549,67511.0,67510.0,0.88372939]
[1722278486682,0.101,67511.0,67510.0,0.88372939]
[1722278486854,0.12423549,67510.0,67509.0,0.162128]
[1722278487065,0.12578969,67510.0,67509.0,0.162128]
[1722278487267,0.12423549,67509.0,67508.0,0.148129]
[1722278487542,0.12478969,67503.0,67502.0,0.02972]
[1722278487706,0.12478969,67503.0,67502.0,0.47415]
[1722278487916,0.13126566,67503.0,67502.0,0.770437]
[1722278488110,0.12323549,67503.0,67502.0,0.47415]
[1722278488475,0.12323549,67503.0,67502.0,0.177863]
[1722278488877,0.12323549,67503.0,67502.0,0.47415]
[1722278489253,0.14647233,67503.0,67502.0,0.177863]
[1722278489456,0.12423549,67501.0,67500.0,0.148148]
[1722278489654,0.02323549,67497.0,67496.0,0.444468]
[1722278489829,0.02478969,67497.0,67496.0,0.61056739]
[1722278490032,0.0015542,67497.0,67496.0,0.90688039]
[1722278490396,0.0015542,67497.0,67496.0,0.93660039]
[1722278490508,0.0015542,67497.0,67496.0,1.23291339]
[1722278490731,0.0015542,67497.0,67496.0,1.20319339]
[1722278491783,0.0015542,67497.0,67496.0,1.23291339]
[1722278493031,0.0015542,67497.0,67496.0,1.24691339]
[1722278494893,0.0015542,67497.0,67496.0,1.26091339]
[1722278495195,0.02323787,67497.0,67496.0,1.26091339]
[1722278495762,0.02479207,67497.0,67496.0,1.26091339]
[1722278496170,0.04802756,67497.0,67496.0,0.92088039]
[1722278496367,0.04802756,67497.0,67496.0,0.014]
[1722278496368,0.14802756,67497.0,67496.0,0.014]
[1722278496586,0.23381717,67497.0,67496.0,0.028]
[1722278496795,0.2105793,67497.0,67496.0,0.768782]
[1722278497210,0.20243549,67497.0,67496.0,0.768782]
[1722278497455,0.21056302,67497.0,67496.0,0.754782]
[1722278497653,0.0015542,67508.0,67496.0,0.17281939]
[1722278497654,0.10453549,67503.0,67496.0,0.17281939]
[1722278497858,0.1313,67503.0,67502.0,0.740717]
[1722278498063,0.20453549,67503.0,67502.0,0.740717]
[1722278499558,0.22777338,67503.0,67502.0,0.740717]
[1722278500135,0.10453789,67503.0,67502.0,0.754717]
[1722278500340,0.10453789,67503.0,67502.0,0.768717]
[1722278500621,0.12777338,67503.0,67502.0,0.768717]
[1722278500954,0.22777338,67503.0,67502.0,0.768717]
[1722278501535,0.22877338,67503.0,67502.0,0.028]
[1722278503097,0.22877338,67503.0,67502.0,0.014]
[1722278503535,0.22777338,67503.0,67502.0,0.45843]
[1722278503692,0.22777338,67503.0,67502.0,0.44443]
[1722278503852,0.22777338,67503.0,67502.0,0.45443]
[1722278504051,0.22777338,67503.0,67502.0,0.46843]
[1722278504368,0.20453549,67503.0,67502.0,0.754717]
[1722278504582,0.20453549,67503.0,67502.0,0.764717]
[1722278506425,0.20453549,67503.0,67502.0,0.172143]
[1722278506590,0.20553549,67503.0,67502.0,0.172143]
[1722278506789,0.21366015,67503.0,67502.0,0.172143]
[1722278507416,0.21366015,67503.0,67502.0,0.024]
[1722278508692,0.45419717,67503.0,67502.0,0.024]
[1722278509943,0.30605617,67503.0,67502.0,0.024]
[1722278510112,0.27846015,67503.0,67502.0,0.024]
[1722278510315,0.42815535,67503.0,67502.0,0.024]
[1722278510518,0.28001435,67503.0,67502.0,0.024]
[1722278511317,0.4498404,67503.0,67502.0,0.024]
[1722278512902,0.42660115,67503.0,67502.0,0.024]
[1722278514392,0.72288415,67503.0,67502.0,0.024]
[1722278514626,1.49955348,67503.0,67502.0,0.024]
[1722278514891,1.54385896,67503.0,67502.0,0.024]
[1722278515133,1.65983373,67503.0,67502.0,0.024]
[1722278515400,1.59328502,67503.0,67502.0,0.024]
[1722278515604,1.59483922,67503.0,67502.0,0.024]
[1722278515815,1.57160373,67503.0,67502.0,0.024]
[1722278515989,1.57060373,67503.0,67502.0,0.024]
[1722278516336,1.69030784,67503.0,67502.0,0.01]
[1722278516742,0.86500749,67497.0,67496.0,0.000924]
[1722278516990,1.37580382,67497.0,67496.0,0.000924]
[1722278517196,1.28704236,67497.0,67496.0,0.000924]
[1722278517395,1.29663163,67497.0,67496.0,0.000924]
[1722278517598,1.43973102,67497.0,67496.0,0.000924]
[1722278518006,1.36919586,67497.0,67496.0,0.000924]
[1722278518156,1.73502261,67497.0,67496.0,0.000924]
[1722278518511,1.73722778,67497.0,67496.0,0.000924]
[1722278518714,1.84800857,67497.0,67496.0,0.000924]
[1722278519092,1.73704917,67497.0,67496.0,0.000924]
[1722278519500,1.82577255,67497.0,67496.0,0.000924]
[1722278519713,1.73704917,67497.0,67496.0,0.000924]
[1722278520796,1.82575217,67497.0,67496.0,0.000924]
[1722278520998,1.09003478,67497.0,67496.0,0.000924]
[1722278521198,0.31946195,67497.0,67496.0,0.000924]
[1722278521423,0.85475338,67497.0,67496.0,0.000924]
[1722278521597,0.85474746,67497.0,67496.0,0.000924]
[1722278522184,0.810404,67497.0,67496.0,0.000924]
[1722278522386,0.81893926,67497.0,67496.0,0.000924]
[1722278522793,0.7956957,67497.0,67496.0,0.000924]
[1722278523037,0.3512327,67497.0,67496.0,0.000924]
[1722278523212,0.32803632,67497.0,67496.0,0.000924]
[1722278523420,0.49938889,67497.0,67496.0,0.000924]
[1722278523617,0.79569789,67497.0,67496.0,0.000924]
[1722278525216,1.18909173,67497.0,67496.0,0.000924]
[1722278525417,1.25662399,67497.0,67496.0,0.000924]
[1722278525619,1.78935346,67497.0,67496.0,0.000924]
[1722278526043,1.71885413,67497.0,67496.0,0.000924]
[1722278526626,1.69202922,67497.0,67496.0,0.000924]
[1722278527068,1.64769949,67497.0,67496.0,0.000924]
[1722278527260,1.64769949,67497.0,67496.0,0.014924]
[1722278527463,1.78515322,67497.0,67496.0,0.014924]
[1722278527663,1.718656,67497.0,67496.0,0.000924]
[1722278528078,1.718656,67497.0,67496.0,0.014924]
[1722278528645,1.7851499,67497.0,67496.0,0.014924]
[1722278529071,1.718656,67497.0,67496.0,0.014924]
[1722278529943,1.48883779,67497.0,67496.0,0.014924]
[1722278530081,1.36855438,67497.0,67496.0,0.014924]
[1722278530815,1.36855438,67497.0,67496.0,0.025924]
[1722278531018,1.36877213,67497.0,67496.0,0.025924]
[1722278531424,0.63305474,67497.0,67496.0,0.025924]
[1722278531641,0.32866557,67497.0,67496.0,0.025924]
[1722278531787,0.25260106,67497.0,67496.0,0.025924]
[1722278531988,0.21357056,67497.0,67496.0,0.025924]
[1722278532283,0.13127056,67497.0,67496.0,0.17408]